Cogmind - Beta 16 @@@ ROGUE MODE // 2025.12.10 @ 22:38:17 Player: H3-MLN Result: Smashed by cave-in Performance ------------- Evolutions (0) 0 Regions Visited (4) 800 Robots Destroyed (41) 205 Value Destroyed (748) 748 Prototype IDs (34) 680 Alien Tech Used (0) 0 Bonus (1035) 1035 TOTAL SCORE: 3468 Bonus ------- Follower Combat Kills 291 Registered with UFD 300 Met Optimus in HQ 500 Friendly Fire -56 Cogmind --------- Core Integrity 0/250 Matter 300/300 Energy 139/140 System Corruption 5% Temperature Cool (2) Movement Flying (195) Ox2 Location -7/Scraptown Parts ------- > --- POWER (1) -------- Light Deuterium Engine > --- PROPULSION (2) --- VTOL Module > --- UTILITY (2) ------ Experimental Sensor Array Advanced Signal Interpreter > --- WEAPON (2) ------- LU-1G1's Laser Shovel CPS Tube > --- INVENTORY (5) ---- Sensor Drone Bay (20/20) Multitool Thermal Lance PL-3XN's Ring of Power PL-3XN's Ring of Power Peak State ------------ > --- POWER ------------ Light Deuterium Engine > --- PROPULSION ------- VTOL Module Xenon Bombardment Thruster > --- UTILITY ---------- Experimental Sensor Array Advanced Signal Interpreter > --- WEAPON ----------- LU-1G1's Laser Shovel CPS Tube > --- INVENTORY -------- Sensor Drone Bay Multitool Thermal Lance Large Botcube [Rating: 36] Favorites ----------- Power Ion Engine Engine Ion Engine Propulsion Light Treads Treads Light Treads Wheel Wheel Flight Unit Xenon Bombardment Thruster Utility Large Storage Unit Device Sensor Drone Bay Storage Large Storage Unit Processor Advanced Signal Interpreter Protection Light Armor Plating Weapon Assault Rifle Energy Gun EM Pulse Gun Energy Cannon Subdweller Beam Cannon Ballistic Gun Assault Rifle Ballistic Cannon Battle Cannon Launcher Grenade Launcher Special Weapon LU-1G1's Laser Shovel Impact Weapon Flail Slashing Weapon Ripper Special Melee Weapon Datajack Build | -11 -10 -10 -10 -7 ------- Run | Yrd Mat Min Sub Scr Slots Evolved . | . . . . . Power . | . . . . . Propulsion . | . . . . . Utility . | . . . . . Weapon . | . . . . . Parts Attached 43 | 8 4 13 6 12 Power 4 | 1 . 1 1 1 Engine 4 | 1 . 1 1 1 Core . | . . . . . Reactor . | . . . . . Propulsion 9 | 2 1 2 2 2 Treads 4 | 1 1 1 1 . Leg . | . . . . . Wheel 3 | 1 . 1 1 . Hover . | . . . . . Flight 2 | . . . . 2 Utility 10 | 2 1 4 . 3 Device 4 | 1 . 2 . 1 Storage 3 | 1 1 1 . . Processor 2 | . . . . 2 Hackware . | . . . . . Protection 1 | . . 1 . . Artifact . | . . . . . Weapon 20 | 3 2 6 3 6 Energy Gun 1 | 1 . . . . Energy Cannon 1 | . . . 1 . Ballistic Gun 7 | 2 . 3 1 1 Ballistic Cannon 2 | . 1 . 1 . Launcher 2 | . . 2 . . Special Weapon 3 | . . . . 3 Impact Weapon 1 | . . . . 1 Slashing Weapon 2 | . 1 . . 1 Piercing Weapon . | . . . . . Special Melee Weapon 1 | . . 1 . . Unidentified Prototypes 2 | . . 1 . 1 Parts Lost 3 | . . 2 . 1 Power . | . . . . . Propulsion 2 | . . 1 . 1 Utility . | . . . . . Weapon 1 | . . 1 . . Highest Loss Streak 1 | . . 1 . 1 To Critical Strikes . | . . . . . Average Backups 11 | 3 12 15 14 8 Power . | . 1 1 . . Propulsion 3 | 1 5 5 3 1 Utility 3 | . 1 3 4 3 Weapon 2 | . 3 4 3 1 Tool/Special . | . . . . . Unused Backups 25 | . 2 1 3 19 Power 5 | . . . . 5 Propulsion 8 | . 1 1 2 4 Utility 8 | . . . . 8 Weapon 2 | . 1 . . 1 Tool/Special 2 | . . . 1 1 Average Slot Usage (%) 87 | . 100 99 100 75 Engine 10 | . 14 14 14 7 Treads 10 | . 14 14 14 6 Wheel 10 | . 14 13 14 6 Flight 4 | . . . . 9 Device 8 | . 14 12 12 4 Storage 10 | . 14 15 14 6 Processor 1 | . . . . 2 Protection 4 | . . . 1 7 Ballistic Gun 12 | . 16 19 15 7 Ballistic Cannon 7 | . 11 7 8 6 Slashing Weapon 1 | . . . . 3 Special Melee Weapon 1 | . . . . 2 Peak Build Rating 36 | 7 8 16 18 36 Average Rating 13 | 5 7 13 16 14 On Entrance 8 | . 7 8 16 12 Avg Prop Armor Cover (%) 10 | 12 10 10 9 10 Naked Turns 737 | . . . . 737 Heaviest Build 51 | 14 31 46 51 35 Greatest Support 20 | 10 20 20 10 10 Greatest Overweight (x) 5 | 1 3 4 5 3 Average Overweight (x) 1 | . 2 3 4 . Largest Inventory Capacity 15 | 8 15 15 15 15 Average Capacity 12 | 7 14 15 15 9 Most Carried 15 | 4 15 15 15 15 Average Carried 11 | 3 12 14 14 8 Final Capacity 15 | 8 15 15 15 5 Final Carried 15 | 4 15 15 15 5 Class Distribution -------------------- 75% | Mutant 13% | Derelict-Mutant 9% | Scavenger-Mutant Dominant Class ---------------- Mutant | -10/Materials Mutant | -10/Mines Mutant | -10/Subcaves Mutant | -7/Scraptown Resources | -11 -10 -10 -10 -7 ----------- Run | Yrd Mat Min Sub Scr Matter Collected 2107 | 330 468 475 327 507 Remotely . | . . . . . Salvage Created 1003 | 163 385 286 169 . Parts 84 | 13 24 37 10 . Haulers Intercepted 2 | . 2 . . . Recyclers Shooed 1 | . . 1 . . Parts Field Recycled . | . . . . . Retrieved Matter . | . . . . . Parts Self-Destructed 1 | . . . 1 . Prevented . | . . . . . Parts Restored . | . . . . . Kills | -11 -10 -10 -10 -7 ------- Run | Yrd Mat Min Sub Scr Combat Hostiles Destroyed 25 | . 10 10 5 . Guns 7 | . 2 1 4 . Cannons 11 | . 8 3 . . AOE 7 | . . 6 1 . Classes Destroyed 11 | 2 6 1 2 . Worker 1 | . 1 . . . Builder 1 | . . 1 . . Tunneler 8 | 4 . 4 . . Hauler 2 | . 2 . . . Recycler 1 | 1 . . . . Operator 1 | . 1 . . . Watcher 2 | . 2 . . . Swarmer 12 | . 6 6 . . Grunt 8 | . 4 4 . . Artisan 2 | . . . 2 . Subdweller 5 | . . . 5 . Best Kill Streak 4 | 3 4 3 2 . Combat Bots Only 3 | . 3 3 2 . Max Kills in Single Turn 3 | 1 2 3 1 . Gunslinging . | . . . . . Exploded 3 | . . 3 1 . Melee . | . . . . . Uniques/NPCs Destroyed . | . . . . . Combat | -11 -10 -10 -10 -7 -------- Run | Yrd Mat Min Sub Scr Hostile Shots Fired 114 | . 52 34 24 4 Missed 35 | . 16 10 7 2 Hits 79 | . 36 24 17 2 Projectile 79 | . 36 24 17 2 Critical Strikes 1 | . 1 . . . Damage Taken 1272 | . 303 293 485 191 Core 273 | . 47 49 118 59 Absorbed by Shields . | . . . . . Core Remaining (%) 100 | 100 . . . . Volleys Fired 171 | 17 50 31 72 1 Largest 2 | 2 2 2 2 1 Hottest 110 | 60 50 50 110 . Shots Fired 278 | 34 94 61 88 1 Gun 161 | 34 58 40 29 . Cannon 112 | . 36 19 57 . Launcher 4 | . . 2 2 . Special 1 | . . . . 1 Kinetic 249 | 28 94 59 68 . Thermal 18 | . . . 18 . Explosive 4 | . . 2 2 . Electromagnetic 6 | 6 . . . . Robot Hit Streak 11 | 3 9 7 11 2 Robot Miss Streak 6 | 3 6 3 1 . Penetration Max . | . . . . . Secondary Targets 1 | . . . 1 . Max Gunslinging Chain 1 | . . . 1 . Shots Hit Robots 138 | 16 50 37 33 2 Core Hits 59 | 8 21 20 10 . Critical Kills . | . . . . . Critical Parts Destroyed 1 | . 1 . . . Critical Strikes 2 | . 1 1 . . Destroy 1 | . 1 . . . Blast 1 | . . 1 . . Melee Attacks 5 | . 1 1 . 3 Impact . | . . . . . Slashing 3 | . 1 . . 2 Piercing . | . . . . . Sneak Attacks 2 | . . 1 . 1 Combat Hostiles . | . . . . . Follow-up Attacks . | . . . . . Damage Inflicted 2308 | 186 721 737 664 . Guns 1138 | 186 384 262 306 . Cannons 836 | . 337 247 252 . Explosions 334 | . . 228 106 . Melee . | . . . . . Ramming . | . . . . . Kinetic 1795 | 136 721 509 429 . Thermal 129 | . . . 129 . Explosive 334 | . . 228 106 . Electromagnetic 50 | 50 . . . . Impact . | . . . . . Slashing . | . . . . . Piercing . | . . . . . Highest Corruption 3 | . 3 3 3 . Average Corruption 2 | . 2 3 3 . Corruption Purged . | . . . . . Corruption Blocked . | . . . . . Effects 65 | . 12 22 31 . Message Errors 23 | . 4 9 10 . Matter Fused 10 | . 1 3 6 . Heat Flow Errors 6 | . . 4 2 . Energy Discharges 5 | . 1 2 2 . Parts Rejected 1 | . . . 1 . Parts Fused 2 | . . . 2 . Data Loss (minor) 8 | . 1 3 4 . Data Loss (major) 3 | . 1 . 2 . Misfires 2 | . 1 1 . . Alerts 4 | . 3 . 1 . Weapon Failures 1 | . . . 1 . Overload Shots . | . . . . . Overflow Damage . | . . . . . Projectiles . | . . . . . Explosions . | . . . . . Melee . | . . . . . Knockbacks 7 | . 1 3 3 . Impact . | . . . . . Kinetic 7 | . 1 3 3 . Secondary . | . . . . . Self-Inflicted Damage . | . . . . . Shots . | . . . . . Rammed . | . . . . . Targets Rammed . | . . . . . Kicked . | . . . . . Crushed . | . . . . . Highest Temperature 256 | . 2 194 256 2 Average Temperature 41 | . 2 33 73 2 Received Heat Transfer 246 | . 12 147 75 12 Siege Activations . | . . . . . Martial Activations . | . . . . . Shielding Activations . | . . . . . Robots Disrupted . | . . . . . Combat Hostiles . | . . . . . Robots Corrupted . | . . . . . Combat Hostiles . | . . . . . Parts Fried . | . . . . . Impact Corruptions . | . . . . . Robots Melted . | . . . . . Combat Hostiles . | . . . . . Parts Melted 2 | . . . 2 . Heat Transferred 185 | . . . 185 . Parts Sabotaged . | . . . . . Parts Stolen . | . . . . . Parts Stripped . | . . . . . Power Chain Reactions . | . . . . . Alert | -11 -10 -10 -10 -7 ------- Run | Yrd Mat Min Sub Scr Maximum Alert Level . | . . . . . Low Security (%) 100 | 100 100 100 . . Level 1 . | . . . . . Level 2 . | . . . . . Level 3 . | . . . . . Level 4 . | . . . . . Level 5 . | . . . . . High Security . | . . . . . Max Security . | . . . . . Peak Influence 128 | 10 128 103 . . Initial . | . . . . . Average 28 | 2 41 23 . . Influence Increases 668 | 25 316 327 . . Destroy 0b10 Robot/C 400 | . 200 200 . . Destroy 0b10 Robot/NC 80 | 25 30 25 . . Destroy Leader 88 | . 48 40 . . Allied During Kill 46 | . . 46 . . Successful Hack 22 | . 22 . . . Disable Machine 15 | . 15 . . . Destroy Structure 17 | . 1 16 . . Influence Decreases 668 | 25 316 327 . . Time Decay 658 | 25 316 317 . . Lost Part 10 | . . 10 . . Squads Dispatched 2 | . 2 . . . Investigation 1 | . 1 . . . Extermination . | . . . . . Reinforcement 1 | . 1 . . . Assault . | . . . . . Garrison . | . . . . . Intercept . | . . . . . Searches Triggered . | . . . . . Construction Impeded . | . . . . . Haulers Reinforced . | . . . . . Active Scanning Responses . | . . . . . Cargo Convoy Interrupts . | . . . . . Stealth | -11 -10 -10 -10 -7 --------- Run | Yrd Mat Min Sub Scr Distress Signals . | . . . . . Communications Jammed . | . . . . . Distress Signals . | . . . . . Times Spotted 48 | . 17 8 7 16 Peak Tracking Total 5 | . 5 3 2 4 Tactical Retreats 1 | . . . . 1 Traps | -11 -10 -10 -10 -7 ------- Run | Yrd Mat Min Sub Scr Traps Triggered 4 | . 2 . 2 . Indirectly . | . . . . . Trap Hack Attempts . | . . . . . Triggered . | . . . . . Disarmed . | . . . . . Reprogrammed 6 | . 6 . . . Reused 1 | . . . . 1 Traps Extracted . | . . . . . Installed 1 | . . . . 1 Triggered . | . . . . . Most Traps Carried 1 | . . . . 1 Machines | -11 -10 -10 -10 -7 ---------- Run | Yrd Mat Min Sub Scr Machines Disabled 16 | . 1 . 1 14 Max in Single Turn 1 | . 1 . 1 1 Machines Repaired . | . . . . . Machines Dismantled . | . . . . . Machines Sabotaged . | . . . . . Overloaded Fab Kills . | . . . . . Hacking | -11 -10 -10 -10 -7 --------- Run | Yrd Mat Min Sub Scr Machines Accessed 14 | . 6 1 2 5 Terminals 6 | . 6 . . . Fabricators . | . . . . . Repair Stations . | . . . . . Recycling Units . | . . . . . Scanalyzers . | . . . . . Garrison Access . | . . . . . Total Hacks 47 | . 17 1 5 24 Successful 37 | . 7 1 5 24 Failed 9 | . 9 . . . Catastrophic 3 | . 3 . . . Database Lockouts 1 | . 1 . . . Manual 12 | . 12 . . . Terminals 17 | . 17 . . . Fabricators . | . . . . . Repair Stations . | . . . . . Recycling Units . | . . . . . Scanalyzers . | . . . . . Garrison Access . | . . . . . Terminal Hacks 37 | . 7 1 5 24 Record 19 | . . . 4 15 Part Schematic 1 | . 1 . . . Robot Schematic 1 | . 1 . . . Robot Analysis 8 | . . . . 8 Prototype ID Bank 1 | . 1 . . . Open Door 1 | . . 1 . . Recycling Unit Index 1 | . 1 . . . Locate Traps 1 | . 1 . . . Reprogram Traps 1 | . 1 . . . Registered Components 1 | . 1 . . . Proto ID Catalog 2 | . . . 1 1 Fabricator Hacks . | . . . . . Repair Station Hacks . | . . . . . Recycling Unit Hacks . | . . . . . Scanalyzer . | . . . . . Garrison Access Hacks . | . . . . . Unauthorized Hacks . | . . . . . Terminals . | . . . . . Fabricators . | . . . . . Repair Stations . | . . . . . Recycling Units . | . . . . . Scanalyzers . | . . . . . Garrison Access . | . . . . . Data Cores Recovered . | . . . . . Used . | . . . . . Hacking Detections 4 | . 4 . . . Full Trace Events 1 | . 1 . . . Feedback Events . | . . . . . Feedback Blocked . | . . . . . Robot Schematics Acquired 1 | . 1 . . . Robots Built . | . . . . . Authchips . | . . . . . Time . | . . . . . Total Robot Build Rating . | . . . . . Part Schematics Acquired 1 | . 1 . . . Parts Built . | . . . . . Authchips . | . . . . . Time . | . . . . . Total Part Build Rating . | . . . . . Part Studies Acquired . | . . . . . Parts Repaired . | . . . . . Time . | . . . . . Parts Recycled . | . . . . . Recycled Matter . | . . . . . Retrieved Matter . | . . . . . Retrieved Components . | . . . . . Parts Scanalyzed . | . . . . . Part Schematics Acquired . | . . . . . Parts Damaged . | . . . . . Bothacking | -11 -10 -10 -10 -7 ------------ Run | Yrd Mat Min Sub Scr Used RIF Installer . | . . . . . Robots Hacked 2 | . . 1 . 1 Non-combat 1 | . . 1 . . Combat 1 | . . . . 1 Robot Hacks Applied 2 | . . 1 . 1 parse_system 2 | . . 1 . 1 Relay Couplers Released . | . . . . . Fabnet Peak Effective % . | . . . . . Robots Rewired . | . . . . . Allies Hacked . | . . . . . Hacks Repelled . | . . . . . Allies | -11 -10 -10 -10 -7 -------- Run | Yrd Mat Min Sub Scr Total Allies 8 | . . 5 . 3 Largest Group 5 | . . 5 5 4 Highest-Rated Group 192 | . . 87 87 192 Highest-Rated Ally 79 | . . 31 31 79 Total Orders 14 | . . 2 6 6 STAY 2 | . . . . 2 FOLLOW 1 | . . . . 1 GUARD 2 | . . . . 2 AID 1 | . . . . 1 EXPLORE 4 | . . . 4 . RETURN 4 | . . 2 2 . Ally Attacks 66 | . . 4 26 36 Total Damage 1944 | . . 59 304 1581 Kills 17 | . . . 1 16 Allies Corrupted . | . . . . . Allies Melted 6 | . . . . 6 Intel | -11 -10 -10 -10 -7 ------- Run | Yrd Mat Min Sub Scr Active Infowar (turns) 1940 | 7 925 323 . 685 Sensors 685 | . . . . 685 Seismic 1255 | 7 925 323 . . Robot Analysis Total 8 | . . . . 8 Derelict Logs Recovered 7 | . . 2 2 3 Drone Launches 7 | . . 3 4 . Drone Recoveries 7 | . . 2 5 . Exploration | -11 -10 -10 -10 -7 ------------- Run | Yrd Mat Min Sub Scr Turns Passed 8293 | 140 925 1519 1690 4019 Spaces Moved 7278 | 84 523 975 849 4847 Core 1379 | 12 . . . 1367 Treads 85 | . 84 1 . . Legs . | . . . . . Wheels 3872 | 72 439 974 849 1538 Hover . | . . . . . Flight 1942 | . . . . 1942 Fastest Speed 34 | 50 95 125 125 34 Average Speed 89 | 85 140 135 141 66 Slowest Speed 240 | 95 240 240 155 125 Overloaded Moves . | . . . . . Propulsion Burnouts . | . . . . . Robots Hopped . | . . . . . Potential Cave-ins 2 | . . . . 2 Cave-ins Triggered 1 | . . . . 1 Exploration Rate (%) 70 | 6 85 100 71 91 Regions Visited 4 Branch Regions 3 Pre-discovered Areas 2 | . . . 2 . Known Exits Taken 2 | . . 1 1 . Unknown Exits Taken 2 | 1 1 . . . Scrap Searched 6 | . . 1 . 5 Spaces Dug 40 | . 1 12 7 20 Terrain Destroyed 51 | . 1 16 14 20 Melee 1 | . 1 . . . Projectile 6 | . . . 6 . AOE 24 | . . 16 8 . Terrain Rammed . | . . . . . Walls Destroyed . | . . . . . Machines Disabled . | . . . . . Actions | -11 -10 -10 -10 -7 --------- Run | Yrd Mat Min Sub Scr Total 8760 | 116 619 1111 1240 5674 Wait 1118 | 4 23 74 290 727 Move 7273 | 83 522 974 848 4846 Hop . | . . . . . Pick Up 62 | 4 14 2 7 35 Fast Attach 20 | 7 . 3 2 8 Attach 4 | . . 1 . 3 Detach 1 | . . 1 . . Swap 41 | 1 5 16 13 6 Drop 64 | . 4 8 8 44 Fire 171 | 17 50 31 72 1 Melee 5 | . 1 1 . 3 Ram . | . . . . . Kick . | . . . . . Crush . | . . . . . Escape Stasis . | . . . . . Rewire . | . . . . . Trap 1 | . . . . 1 Miscellaneous . | . . . . . Route ------- -11/Scrapyard -10/Materials (discovered 4 exits: *Mat x3 / *Min) -10/Mines (discovered 3 exits: *Mat x2 / *Sub) -10/Subcaves (discovered 3 exits: *Mat x2 / *Scr) -7/Scraptown (discovered 2 exits: [*Fac x2]) History --------- Turn | Location | Event 21 | -11/Scrapyard | Discovered new exit (range 16) 141 | -11/Scrapyard | Entered Materials 279 | -10/Materials | Discovered new exit (range 15) 314 | -10/Materials | Build established: Mutant 385 | -10/Materials | Discovered new exit (range 16) 909 | -10/Materials | Central database locked down 943 | -10/Materials | Discovered new exit (range 13) 1051 | -10/Materials | Discovered new exit (range 9) 1066 | -10/Materials | Entered Mines 1121 | -10/Mines | Discovered new exit (range 10) 1382 | -10/Mines | Found the Drone Emporium 1389 | -10/Mines | Found Prototype Device 1389 | -10/Mines | Identified Sensor Drone Bay 1429 | -10/Mines | Assisted by bots powering up and referring to "LRC-V3" 1621 | -10/Mines | Learned Materials stockpile data 1708 | -10/Mines | Discovered new exit (range 7) 1718 | -10/Mines | Joined a pair of Derelicts in attacking an 0b10 outpost 1825 | -10/Mines | Identified exit to Materials 2185 | -10/Mines | Build established: Scavenger-Mutant 2430 | -10/Mines | Learned Materials emergency access door positions 2561 | -10/Mines | Discovered new exit (range 5) 2569 | -10/Mines | Identified exit to Subcaves 2585 | -10/Mines | Entered Subcaves 2585 | -10/Subcaves | Accompanied by 6 allies 2586 | -10/Subcaves | Approached by a straggling Scientist 2590 | -10/Subcaves | Led the pair of lost Derelicts to an unsafe place 2604 | -10/Subcaves | Learned Materials trap positions 2761 | -10/Subcaves | Discovered new exit (range 36) 2769 | -10/Subcaves | A swath of the cavern ceiling suddenly collapsed 2988 | -10/Subcaves | Visited 4L-MR0's lab 2998 | -10/Subcaves | Build established: Mutant 3000 | -10/Subcaves | Found Power Bank 3049 | -10/Subcaves | Identified exit to Materials 3128 | -10/Subcaves | Core integrity fell below 50% 3221 | -10/Subcaves | Scientist uncovered a shortcut to Scraptown 3379 | -10/Subcaves | Discovered exit to Materials (range 5) 3447 | -10/Subcaves | Visited Clippyterm 3452 | -10/Subcaves | Learned location of Deep Caves (-7) 3452 | -10/Subcaves | Learned 40 Factory zone layouts 3628 | -10/Subcaves | Shifting Twisted Machinery released Sub. Machine Gun 3659 | -10/Subcaves | Shifting Twisted Machinery released Sub. Monowheel 3691 | -10/Subcaves | A swath of the cavern ceiling suddenly collapsed 3723 | -10/Subcaves | Learned 2 Materials zone layouts 3771 | -10/Subcaves | Learned location of Zion (-7) 3771 | -10/Subcaves | Met a Zionite searching for "candidates" 4125 | -10/Subcaves | Identified exit to Scraptown 4158 | -10/Subcaves | Ambushed by angry Subdweller bent on revenge 4168 | -10/Subcaves | Core integrity fell below 20% 4275 | -10/Subcaves | Entered Scraptown 4275 | -7/Scraptown | Accompanied by 2 allies 4275 | -7/Scraptown | System corruption cleaned by C-Scrubber 4305 | -7/Scraptown | Led the pair of lost Derelicts to a safe place 4424 | -7/Scraptown | Visited Fellowship of the Rings 4450 | -7/Scraptown | Visited The Evicted 4467 | -7/Scraptown | Visited Spacefarers 4478 | -7/Scraptown | Visited Cyclists 4490 | -7/Scraptown | Visited Awakened 4509 | -7/Scraptown | Visited Shadow of the Wyrm 4585 | -7/Scraptown | Scanned Subdweller tech in exchange for log data 4588 | -7/Scraptown | Learned Research interactive machine intel 4589 | -7/Scraptown | Learned location of 2 exits from Upper Caves 4590 | -7/Scraptown | Learned Research stockpile data 4605 | -7/Scraptown | Discovered new exit (range 13) 4683 | -7/Scraptown | Heard Great Nut preacher, LISTEN AND RECITE! 4917 | -7/Scraptown | Visited UFD Registry 4917 | -7/Scraptown | Registered with UFD as "Microhead" 4944 | -7/Scraptown | Visited Infowarlord's Domain 4962 | -7/Scraptown | Visited Science Guys 5002 | -7/Scraptown | Visited Abandonware Association 5023 | -7/Scraptown | Learned abandonware demo "REBOOT5.EXE" 5105 | -7/Scraptown | Visited Analyses Database 5132 | -7/Scraptown | Visited DA-N13 Charitable Foundation 5137 | -7/Scraptown | Found DCF Scrap (29 items) 5165 | -7/Scraptown | Visited Scrap Suit Storage 5190 | -7/Scraptown | Visited Botcube Research 5214 | -7/Scraptown | Visited Curators Association 5247 | -7/Scraptown | Visited Science Testing Area 5598 | -7/Scraptown | Found Scrap Suit 5756 | -7/Scraptown | Found Exp. Sensor Array 5883 | -7/Scraptown | Guru changed UFD alias to "Smoothmod" 6179 | -7/Scraptown | Visited LU-1G1's Boring Crew 6308 | -7/Scraptown | Discovered new exit (range 3) 6411 | -7/Scraptown | Entered Cyclist Reading Room 6839 | -7/Scraptown | Found Botcube 6846 | -7/Scraptown | Botcube activated 6874 | -7/Scraptown | Botcube completed mutation into treaded form, armed with 2 launchers. 7048 | -7/Scraptown | Attached CPS modules to *Bobblehead. 7200 | -7/Scraptown | Build established: Derelict-Mutant 7328 | -7/Scraptown | Warned about trapping Scraptown 7608 | -7/Scraptown | Met Optimus 7608 | -7/Scraptown | Accepted into 0bPrime 8008 | -7/Scraptown | Civil war broke out across Scraptown 8014 | -7/Scraptown | Found Prototype Special Weapon 8019 | -7/Scraptown | Identified LU-1G1's Laser Shovel 8027 | -7/Scraptown | Found Lrg. Botcube 8030 | -7/Scraptown | Botcube activated 8053 | -7/Scraptown | Found Thermal Lance 8142 | -7/Scraptown | Lost 6 allies 8169 | -7/Scraptown | Lrg. Botcube activated 8171 | -7/Scraptown | Found PL-3XN's Ring of Power 8197 | -7/Scraptown | Found PL-3XN's Ring of Power 8294 | -7/Scraptown | Crushed by falling debris 8294 | -7/Scraptown | Smashed by cave-in Last Messages --------------- 08267_ LU-1G1's Laser Shovel disintegrates Machine. 08268_ LU-1G1's Laser Shovel disintegrates Wall. 08272_ Bolt penetrates *Creature of War. 08273_ Machine disabled. 08275_ Bolt penetrates *Creature of War. 08280_ *Creature of War suffers critical hit (Burn). 08280_ *Creature of War overheating. 08281_ *Creature of War critical meltdown. 08281_ QC-41F(j) heat spikes uncontrollably. 08282_ CX-JE8(j) cannibalizes Scrap Suit to repair Mak. Microdissipator Network. 08285_ 1G-9S0(x) destroyed. 08285_ LU-1G1's Laser Shovel disintegrates Wall. 08286_ LU-1G1's Laser Shovel disintegrates Earth. 08293_ LU-1G1's Laser Shovel disintegrates Wall. 08294_ LU-1G1's Laser Shovel disintegrates Machine. 08294_ The unstable cave ceiling collapses. 08294_ Crushed by falling debris. 08294_ Xenon Bombardment Thruster destroyed. 08294_ System corrupted by crushing effect (+5). Map ----- +----------------------------------------------------+ | ?????????????????????????????????????????????????? | | ###??????????????????????????????????????????????? | | ""#??????????????????????????????????????????????? | | "#??????????????????????????????????????????????? | | "#??????????????????????????????????????????????? | | "#??????????????????????????????????????????????? | | "#??????????????????????????????????????????????? | | "#??????????????????????????????????????????????? | | ""#??????????????????????????????????????????????? | | #??????????????????????????????????????????????? | | #???????????????????????????##?????????????????? | | #???????????????????????#####"#############???## | | ###???????????????????????"""## ""##""|##"""#??## | | ?????????????????????????#"" ## "!##"" ""! "#### | | ?????????????????????????#"" | | ?????????????????????????# | | ?????????????????????????######"#"############## | | ??????????????????????????????# # #????????????## | | ??????????????????????????#####"#"###???????????# | | ??????????????????????????# #"#"# # #?########### | | ?????????????????????????###" " "####""""""""## | | ????????????###########??#" ! "##"& &"## | | ###?????????# #??##"" =""###" "## | | # #?????????#Y ###?#! [!%]"##"" " """## | | " ##????????# # ### " % !""#####"#"##### | | "#????????# ; @ "#"" /x """"# | | #????????# g s ##### " "##"" """# | | #????????#s s * #??#"* "!## " ""# | | ?????????# #??##"" ""##" """# | | ???????????# [ #??#" "#" " | | ????????????#######j###??##"### ########### ##### | | #######???????##### #######"### ########### ##### | | #?????###"" ! """"""" """! """""""""" """"" | | #?????# #" =%!% j[ !!%%* =[%! | | * #??????#"" =*= !!j=[%=== !!%= | | #??????## !%!= ! !%!!* | | #???????# ! j * | | #???##### =%! | | #???#"""" ="""" " "" """"""""" """""""" | | * #?###"""" =*""""""""" """""""""""""""""" | | #?# " !!%""###### ################"" | | #?###"""" % %!""# j ##????????#"" | | #???#"""" = =! "# X"#????????#"" | | ! ###?#""""% *%[""# j"" "" ##????????#"" | | % ==!"#"#""""!! ""# "" "" X"#??????###"" | | ! %!% """#"""" ""# " =" ######### #""! | | % =![*""######"" "" ""= * ![ *=% | | !%[*###???# #" "" ""! [%==%! [=%/ | | *[*#########" # " ! !=[######### #"!! | | =[ % % ""# "" " ""#??????###""% | +----------------------------------------------------+ Best States ------------- Heat Dissipation 25 Energy Generation 14 Energy Capacity 265 Matter Stores 300 Matter Capacity 500 Sight Range 16 Robot Scan Range 20 Terrain Scan Density 10 Armor Coverage 150 Evasion (%) 63 Recoil Reduction 1 Item Schematics ----------------- Huge Storage Unit | -10/Materials | Hacked Robot Schematics ------------------ M-13 Machinist | -10/Materials | Hacked Fabricated ------------ Nothing Repaired ---------- Nothing Studied --------- None Alien Tech Used ----------------- None Achievements -------------- None Challenges ------------ None Game ------ Seed MeleeGuidedCorpse Manual? 0 Play Time 01:26:07 Cumulative 1149.9 hours Start 2025.12.10 @ 20:46:30 End 2025.12.10 @ 22:38:17 Sessions 1 Manual Loads 0 Difficulty Rogue Special Mode None Game No. 401 Rogue 396 Adventurer 4 Explorer 1 Win Type - Total 24 Types 13/4/1/2/0/1/0/0/2/1 Lore% 97 Gallery% 96 Achievement% 81 Wizard Run 0 Options --------- Layout 0 ASCII 0 Keyboard 0 Movement Numpad Keybinds 0 Fullscreen 2 Font 18/SmallcapsGlow Map View 76x50 Zoom Use 0% Tactical HUD 1 Map Filters NONE Filters NONE Steam 1 RUN: b315dfde-4929-4eb6-964e-a18d3817d906